fUSD/lending_fUSD_20240426
["ID","MTS","AMOUNT","RATE_DAILY","PERIOD"]
[323656581,1714149057351,-500.0,0.00011815,2]
[323656582,1714149057361,-500.0,0.00011815,2]
[323656583,1714149057370,-500.0,0.00011815,2]
[323656584,1714149057381,-500.0,0.00011815,2]
[323656585,1714149057391,-598.0,0.00011815,2]
[323656586,1714149057400,-500.0,0.00011815,2]
[323656587,1714149057409,-500.0,0.00011815,2]
[323656588,1714149057418,-500.0,0.00011815,2]
[323656589,1714149057427,-237.55,0.00011815,2]
[323656590,1714149057438,-244.44,0.00011815,2]
[323656591,1714149057447,-214.82,0.00011815,2]
[323656592,1714149057457,-645.95,0.00011815,2]
[323656593,1714149057467,-610.07,0.00011815,2]
[323656594,1714149057477,-636.11,0.00011815,2]
[323656595,1714149057486,-500.0,0.00011815,2]
[323656596,1714149057495,-500.0,0.00011815,2]
[323656597,1714149057504,-500.0,0.00011815,2]
[323656598,1714149057514,-500.0,0.00011815,2]
[323656599,1714149057523,-500.0,0.00011815,2]
[323656600,1714149057532,-662.59,0.00011815,2]
[323656601,1714149057541,-500.0,0.00011815,2]
[323656602,1714149057550,-500.0,0.00011815,2]
[323656603,1714149057561,-509.33,0.00011815,2]
[323656604,1714149057570,-811.87,0.00011815,2]
[323656605,1714149057579,-500.0,0.00011815,2]
[323656606,1714149057588,-559.21,0.00011815,2]
[323656607,1714149057597,-500.0,0.00011815,2]
[323656608,1714149057607,-500.0,0.00011815,2]
[323656609,1714149057616,-1636.0,0.00011815,2]
[323656610,1714149057626,-1421.16,0.00011815,2]
[323656611,1714149057636,-601.86,0.00011815,2]
[323656612,1714149057647,-500.0,0.00011815,2]
[323656613,1714149057657,-500.0,0.00011815,2]
[323656614,1714149057666,-500.0,0.00011815,2]
[323656615,1714149057675,-500.0,0.00011815,2]
[323656616,1714149057684,-500.0,0.00011815,2]
[323656617,1714149057693,-1308.57,0.00011815,2]
[323656618,1714149057703,-500.0,0.00011815,2]
[323656619,1714149057712,-912.43,0.00011815,2]
[323656620,1714149057721,-1025.96,0.00011815,2]
[323656621,1714149057731,-595.72,0.00011815,2]
[323656622,1714149057741,-293.63828163,0.0001182,2]
[323656623,1714149057751,-1700.0,0.000119,4]
[323656624,1714149057762,-293.63828163,0.00011928,2]
[323656625,1714149057772,-240.0,0.00011982,2]
[323656626,1714149057782,-1748.09424184,0.00012,2]
[323656627,1714149057792,-5000.0,0.00012,2]
[323656628,1714149057802,-409.17053992,0.00012,2]
[323656629,1714149057812,-156.69137467,0.00012,2]
[323656630,1714149057822,-293.63828163,0.00012036,2]
[323656631,1714149057833,-160.0,0.00012046,2]
[323656632,1714149057843,-1215.61,0.00012085,2]
[323656633,1714149057853,-161.76,0.00012085,2]
[323656634,1714149057863,-1429.39,0.00012085,2]
[323656635,1714149057875,-1594.72,0.00012085,2]
[323656636,1714149057885,-500.0,0.00012085,2]
[323656637,1714149057896,-2223.39,0.00012085,2]
[323656638,1714149057906,-500.0,0.00012085,2]
[323656639,1714149057917,-2265.82,0.00012085,2]
[323656640,1714149057927,-1882.35,0.00012085,2]
[323656641,1714149057938,-1829.8,0.00012085,2]
[323656642,1714149057949,-1753.72,0.00012085,2]
[323656643,1714149057959,-1059.05,0.00012085,2]
[323656644,1714149057969,-2704.06,0.00012085,2]
[323656645,1714149057979,-5630.56,0.00012085,2]
[323656646,1714149057988,-2240.19,0.00012085,2]
[323656647,1714149057997,-3623.87,0.00012085,2]
[323656648,1714149058007,-3058.36,0.00012085,2]
[323656649,1714149058016,-1174.95,0.00012085,2]
[323656650,1714149058025,-1244.22,0.00012085,2]
[323656651,1714149058035,-993.15,0.00012085,2]
[323656652,1714149058044,-1322.94,0.00012085,2]
[323656653,1714149058054,-500.0,0.00012085,2]
[323656654,1714149058065,-3154.83,0.00012085,2]
[323656655,1714149058074,-6065.55,0.00012085,2]
[323656656,1714149058083,-500.0,0.00012085,2]
[323656657,1714149058092,-500.0,0.00012085,2]
[323656658,1714149058102,-500.0,0.00012085,2]
[323656659,1714149058111,-500.0,0.00012085,2]
[323656660,1714149058120,-500.0,0.00012085,2]
[323656661,1714149058130,-500.0,0.00012085,2]
[323656662,1714149058138,-500.0,0.00012085,2]
[323656663,1714149058148,-3289.42,0.00012085,2]
[323656664,1714149058157,-500.0,0.00012085,2]
[323656665,1714149058167,-500.0,0.00012086,2]
[323656666,1714149058177,-500.0,0.00012086,2]
[323656667,1714149058186,-500.0,0.00012086,2]
[323656668,1714149058195,-500.0,0.00012086,2]
[323656669,1714149058205,-612.86,0.00012086,2]
[323656670,1714149058214,-500.0,0.00012086,2]
[323656671,1714149058224,-500.0,0.00012086,2]
[323656672,1714149058234,-640.17,0.00012086,2]
[323656673,1714149058244,-500.0,0.00012086,2]
[323656674,1714149058253,-644.23,0.00012086,2]
[323656675,1714149058263,-439.2,0.00012086,2]
[323656676,1714149058272,-1256.86,0.00012086,2]
[323656677,1714149058282,-503.72,0.00012086,2]
[323656678,1714149058292,-539.34,0.00012086,2]
[323656679,1714149058302,-500.0,0.00012086,2]
[323656680,1714149058315,-346.75,0.00012086,2]
[323656681,1714149058324,-500.0,0.00012086,2]
[323656682,1714149058335,-240.93,0.00012086,2]
[323656683,1714149058344,-500.0,0.00012086,2]
[323656684,1714149058354,-500.0,0.00012086,2]
[323656685,1714149058363,-500.0,0.00012086,2]
[323656686,1714149058373,-217.96,0.00012086,2]
[323656687,1714149058384,-1210.85,0.00012086,2]
[323656688,1714149058393,-500.0,0.00012086,2]
[323656689,1714149058402,-500.0,0.00012086,2]
[323656690,1714149058412,-616.79,0.00012086,2]
[323656691,1714149058422,-500.0,0.00012086,2]
[323656692,1714149058432,-500.0,0.00012086,2]
[323656693,1714149058442,-500.0,0.00012086,2]
[323656694,1714149058452,-500.0,0.00012086,2]
[323656695,1714149058462,-500.0,0.00012086,2]
[323656696,1714149058473,-1046.89,0.00012086,2]
[323656697,1714149058483,-500.0,0.00012086,2]
[323656698,1714149058494,-500.0,0.00012086,2]
[323656699,1714149058505,-1662.26,0.00012086,2]
[323656700,1714149058515,-1614.92,0.00012086,2]
[323656701,1714149058526,-500.0,0.00012086,2]
[323656702,1714149058536,-500.0,0.00012086,2]
[323656703,1714149058545,-500.0,0.00012086,2]
[323656704,1714149058555,-540.35,0.00012086,2]
[323656705,1714149058566,-1901.7,0.00012086,2]
[323656706,1714149058575,-500.0,0.00012086,2]
[323656707,1714149058585,-500.0,0.00012086,2]
[323656708,1714149058596,-500.0,0.00012086,2]
[323656709,1714149058606,-500.0,0.00012086,2]
[323656710,1714149058616,-599.77,0.00012086,2]
[323656711,1714149058626,-396.38,0.00012086,2]
[323656712,1714149058636,-500.0,0.00012086,2]
[323656713,1714149058646,-500.0,0.00012086,2]
[323656714,1714149058655,-500.0,0.00012086,2]
[323656715,1714149058665,-550.39,0.00012086,2]
[323656716,1714149058675,-414.93415619,0.00012086,2]
[323656717,1714149058685,-662.42,0.00012086,2]
[323656718,1714149058694,-1748.51,0.00012086,2]
[323656719,1714149058704,-500.0,0.00012086,2]
[323656720,1714149058715,-623.8,0.00012086,2]
[323656721,1714149058724,-500.0,0.00012086,2]
[323656722,1714149058734,-500.0,0.00012086,2]
[323656723,1714149058744,-500.0,0.00012086,2]
[323656724,1714149058755,-500.0,0.00012086,2]
[323656725,1714149058765,-529.75,0.00012086,2]
[323656726,1714149058775,-2131.48,0.00012086,2]
[323656727,1714149058785,-500.0,0.00012086,2]
[323656728,1714149058794,-500.0,0.00012086,2]
[323656729,1714149058805,-1276.19,0.00012086,2]
[323656730,1714149058816,-1531.16,0.00012086,2]
[323656731,1714149058826,-500.0,0.00012086,2]
[323656732,1714149058835,-1269.59,0.00012086,2]
[323656733,1714149058845,-500.0,0.00012086,2]
[323656734,1714149058855,-500.0,0.00012086,2]
[323656735,1714149058865,-4251.17,0.00012086,2]
[323656736,1714149058876,-500.0,0.00012086,2]
[323656737,1714149058886,-500.0,0.00012086,2]
[323656738,1714149058896,-4257.92,0.00012086,2]
[323656739,1714149058906,-651.9,0.00012086,2]
[323656740,1714149058915,-500.0,0.00012086,2]
[323656741,1714149058925,-11294.83,0.00012086,2]
[323656742,1714149058935,-10697.7,0.00012086,2]
[323656743,1714149058945,-1273.7,0.00012086,2]
[323656744,1714149058955,-8953.63,0.00012086,2]
[323656745,1714149058965,-1159.49,0.00012086,2]
[323656746,1714149058975,-690.73,0.00012086,2]
[323656747,1714149058985,-1691.65,0.00012086,2]
[323656748,1714149058994,-3003.83,0.00012086,2]
[323656749,1714149059004,-500.0,0.00012086,2]
[323656750,1714149059014,-500.0,0.00012086,2]
[323656751,1714149059024,-7101.95,0.00012086,2]
[323656752,1714149059034,-1555.56,0.00012086,2]
[323656753,1714149059044,-4530.65,0.00012086,2]
[323656754,1714149059054,-4768.14,0.00012086,2]
[323656755,1714149059065,-500.0,0.00012086,2]
[323656756,1714149059074,-2093.19,0.00012086,2]
[323656757,1714149059084,-500.0,0.00012086,2]
[323656758,1714149059094,-926.04,0.00012086,2]
[323656759,1714149059105,-3870.0,0.00012086,2]
[323656760,1714149059115,-1291.96,0.00012086,2]
[323656761,1714149059124,-8548.33,0.00012086,2]
[323656762,1714149059134,-500.0,0.00012086,2]
[323656763,1714149059144,-1681.81,0.00012086,2]
[323656764,1714149059153,-500.0,0.00012086,2]
[323656765,1714149059163,-4033.69,0.00012086,2]
[323656766,1714149059173,-500.0,0.00012086,2]
[323656767,1714149059182,-500.0,0.00012086,2]
[323656768,1714149059192,-2496.7,0.00012086,2]
[323656769,1714149059202,-1556.69,0.00012086,2]
[323656770,1714149059212,-11394.29,0.00012086,2]
[323656771,1714149059223,-500.0,0.00012086,2]
[323656772,1714149059233,-1843.36,0.00012086,2]
[323656773,1714149059243,-178.34704785,0.00012086,2]
[323656774,1714149059253,-506.07,0.00012086,2]
[323656775,1714149059263,-500.0,0.00012086,2]
[323656776,1714149059274,-1389.23,0.00012086,2]
[323656777,1714149059284,-500.0,0.00012086,2]
[323656778,1714149059294,-1518.43,0.00012086,2]
[323656779,1714149059306,-2729.76,0.00012086,2]
[323656780,1714149059316,-4703.85,0.00012086,2]
[323656781,1714149059327,-500.0,0.00012086,2]
[323656782,1714149059339,-500.0,0.00012086,2]
[323656783,1714149059348,-1279.26,0.00012086,2]
[323656784,1714149059358,-3034.77,0.00012086,2]
[323656785,1714149059369,-500.0,0.00012086,2]
[323656786,1714149059380,-969.04,0.00012086,2]
[323656787,1714149059390,-198.90976704,0.00012086,2]
[323656788,1714149059400,-1759.99,0.00012086,2]
[323656789,1714149059410,-1412.85,0.00012086,2]
[323656790,1714149059420,-966.37,0.00012086,2]
[323656791,1714149059430,-2072.39,0.00012086,2]
[323656792,1714149059440,-500.0,0.00012086,2]
[323656793,1714149059450,-1812.94,0.00012086,2]
[323656794,1714149059460,-2203.74,0.00012086,2]
[323656795,1714149059469,-1927.61,0.00012086,2]
[323656796,1714149059479,-500.0,0.00012086,2]
[323656797,1714149059488,-500.0,0.00012086,2]
[323656798,1714149059498,-2371.03,0.00012086,2]
[323656799,1714149059508,-729.64,0.00012086,2]
[323656800,1714149059517,-1215.65,0.00012086,2]
[323656801,1714149059527,-3099.52,0.00012086,2]
[323656802,1714149059536,-2129.57,0.00012086,2]
[323656803,1714149059546,-1060.07,0.00012086,2]
[323656804,1714149059556,-705.27,0.00012086,2]
[323656805,1714149059567,-3133.69,0.00012086,2]
[323656806,1714149059576,-739.6,0.00012086,2]
[323656807,1714149059586,-500.0,0.00012086,2]
[323656808,1714149059596,-500.0,0.00012086,2]
[323656809,1714149059606,-1075.86,0.00012086,2]
[323656810,1714149059615,-2025.92,0.00012086,2]
[323656811,1714149059625,-500.0,0.00012086,2]
[323656812,1714149059635,-500.0,0.00012086,2]
[323656813,1714149059644,-500.0,0.00012086,2]
[323656814,1714149059654,-500.0,0.00012086,2]
[323656815,1714149059664,-2207.6,0.00012086,2]
[323656816,1714149059674,-500.0,0.00012086,2]
[323656817,1714149059688,-526.3302765,0.00012086,2]
[323656818,1714149059698,-1550.86,0.00012086,2]
[323656819,1714149059708,-500.0,0.00012086,2]
[323656820,1714149059717,-4090.88,0.00012086,2]
[323656821,1714149059727,-500.0,0.00012087,2]
[323656822,1714149059737,-959.36,0.00012087,2]
[323656823,1714149059747,-500.0,0.00012087,2]
[323656824,1714149059758,-500.0,0.00012087,2]
[323656825,1714149059769,-500.0,0.00012087,2]
[323656826,1714149059780,-500.0,0.00012087,2]
[323656827,1714149059791,-500.0,0.00012087,2]
[323656828,1714149059801,-500.0,0.00012087,2]
[323656829,1714149059814,-500.0,0.00012087,2]
[323656830,1714149059825,-500.0,0.00012087,2]
[323656831,1714149059835,-500.0,0.00012087,2]
[323656832,1714149059845,-500.0,0.00012087,2]
[323656833,1714149059856,-500.0,0.00012087,2]
[323656834,1714149059867,-500.0,0.00012087,2]
[323656835,1714149059879,-500.0,0.00012087,2]
[323656836,1714149059889,-500.0,0.00012087,2]
[323656837,1714149059900,-500.0,0.00012087,2]
[323656838,1714149059910,-798.65,0.00012087,2]
[323656839,1714149059921,-707.36,0.00012087,2]
[323656840,1714149059932,-500.0,0.00012087,2]
[323656841,1714149059942,-500.0,0.00012087,2]
[323656842,1714149059952,-500.0,0.00012087,2]
[323656843,1714149059962,-807.88,0.00012087,2]
[323656844,1714149059972,-500.0,0.00012087,2]
[323656845,1714149059983,-500.0,0.00012087,2]
[323656846,1714149059993,-500.0,0.00012087,2]
[323656847,1714149060004,-500.0,0.00012087,2]
[323656848,1714149060015,-500.0,0.00012087,2]
[323656849,1714149060026,-824.86,0.00012087,2]
[323656850,1714149060037,-188.15,0.00012087,2]
[323656851,1714149060048,-750.16,0.00012087,2]
[323656852,1714149060059,-500.0,0.00012087,2]
[323656853,1714149060069,-557.29,0.00012087,2]
[323656854,1714149060080,-500.0,0.00012087,2]
[323656855,1714149060091,-1368.69,0.00012087,2]
[323656856,1714149060101,-500.0,0.00012087,2]
[323656857,1714149060111,-500.0,0.00012087,2]
[323656858,1714149060121,-500.0,0.00012087,2]
[323656859,1714149060133,-500.0,0.00012087,2]
[323656860,1714149060143,-500.0,0.00012087,2]
[323656861,1714149060155,-866.63,0.00012087,2]
[323656862,1714149060166,-500.0,0.00012087,2]
[323656863,1714149060178,-1082.99,0.00012087,2]
[323656864,1714149060189,-1030.07,0.00012087,2]
[323656865,1714149060200,-500.0,0.00012087,2]
[323656866,1714149060211,-500.0,0.00012087,2]
[323656867,1714149060222,-889.41,0.00012087,2]
[323656868,1714149060232,-1071.85,0.00012087,2]
[323656869,1714149060243,-765.24,0.00012087,2]
[323656870,1714149060254,-500.0,0.00012087,2]
[323656871,1714149060265,-500.0,0.00012087,2]
[323656872,1714149060277,-500.0,0.00012087,2]
[323656873,1714149060287,-1283.74,0.00012087,2]
[323656874,1714149060299,-953.28,0.00012087,2]
[323656875,1714149060316,-500.0,0.00012087,2]
[323656876,1714149060326,-500.0,0.00012087,2]
[323656877,1714149060337,-2596.76,0.00012087,2]
[323656878,1714149060350,-1643.41,0.00012087,2]
[323656879,1714149060361,-706.77,0.00012087,2]
[323656880,1714149060371,-1136.67,0.00012087,2]
[323656881,1714149060382,-500.0,0.00012087,2]
[323656882,1714149060392,-1697.83,0.00012087,2]
[323656883,1714149060402,-4232.01,0.00012087,2]
[323656884,1714149060411,-500.0,0.00012087,2]
[323656885,1714149060421,-1552.48,0.00012087,2]
[323656886,1714149060431,-500.0,0.00012087,2]
[323656887,1714149060442,-500.0,0.00012087,2]
[323656888,1714149060665,-1832.06,0.00012087,2]
[323656889,1714149060674,-500.0,0.00012087,2]
[323656890,1714149060684,-941.89,0.00012087,2]
[323656891,1714149060693,-500.0,0.00012087,2]
[323656892,1714149060703,-1065.66,0.00012087,2]
[323656893,1714149060713,-12005.8,0.00012087,2]
[323656894,1714149060723,-500.0,0.00012087,2]
[323656895,1714149060733,-500.0,0.00012087,2]
[323656896,1714149060743,-9202.72,0.00012087,2]
[323656897,1714149060753,-500.0,0.00012087,2]
[323656898,1714149060763,-500.0,0.00012087,2]
[323656899,1714149060773,-502.83,0.00012087,2]
[323656900,1714149060783,-1671.97,0.00012087,2]
[323656901,1714149060793,-500.0,0.00012087,2]
[323656902,1714149060802,-2361.08,0.00012087,2]
[323656903,1714149060814,-500.0,0.00012087,2]
[323656904,1714149060823,-7952.04,0.00012087,2]
[323656905,1714149060833,-695.21,0.00012087,2]
[323656906,1714149060842,-1050.25,0.00012087,2]
[323656907,1714149060852,-500.0,0.00012087,2]
[323656908,1714149060861,-502.77,0.00012087,2]
[323656909,1714149060871,-500.0,0.00012087,2]
[323656910,1714149060881,-500.0,0.00012087,2]
[323656911,1714149060891,-500.0,0.00012087,2]
[323656912,1714149060900,-500.0,0.00012088,2]
[323656913,1714149060910,-500.0,0.00012088,2]
[323656914,1714149060920,-500.0,0.00012088,2]
[323656915,1714149060930,-500.0,0.00012088,2]
[323656916,1714149060940,-500.0,0.00012088,2]
[323656917,1714149060949,-500.0,0.00012088,2]
[323656918,1714149060959,-500.0,0.00012088,2]
[323656919,1714149060969,-500.0,0.00012088,2]
[323656920,1714149060979,-500.0,0.00012088,2]
[323656921,1714149060989,-500.0,0.00012088,2]
[323656922,1714149060999,-500.0,0.00012088,2]
[323656923,1714149061008,-500.0,0.00012088,2]
[323656924,1714149061018,-500.0,0.00012088,2]
[323656925,1714149061028,-500.0,0.00012088,2]
[323656926,1714149061037,-500.0,0.00012088,2]
[323656927,1714149061047,-500.0,0.00012088,2]
[323656928,1714149061058,-500.0,0.00012088,2]
[323656929,1714149061070,-500.0,0.00012088,2]
[323656930,1714149061079,-500.0,0.00012088,2]
[323656931,1714149061089,-500.0,0.00012088,2]
[323656932,1714149061100,-500.0,0.00012088,2]
[323656933,1714149061109,-500.0,0.00012088,2]
[323656934,1714149061119,-500.0,0.00012088,2]
[323656935,1714149061129,-500.0,0.00012088,2]
[323656936,1714149061139,-500.0,0.00012088,2]
[323656937,1714149061148,-500.0,0.00012088,2]
[323656938,1714149061158,-500.0,0.00012088,2]
[323656939,1714149061168,-500.0,0.00012088,2]
[323656940,1714149061178,-500.0,0.00012088,2]
[323656941,1714149061187,-500.0,0.00012088,2]
[323656942,1714149061197,-500.0,0.00012088,2]
[323656943,1714149061207,-565.28631119,0.00012088,2]
[323656944,1714149061217,-500.0,0.00012088,2]
[323656945,1714149061226,-500.0,0.00012088,2]
[323656946,1714149061235,-500.0,0.00012088,2]
[323656947,1714149061246,-539.46,0.00012088,2]
[323656948,1714149061256,-500.0,0.00012088,2]
[323656949,1714149061266,-500.0,0.00012088,2]
[323656950,1714149061276,-500.0,0.00012088,2]
[323656951,1714149061286,-500.0,0.00012088,2]
[323656952,1714149061297,-500.0,0.00012088,2]
[323656953,1714149061314,-500.0,0.00012088,2]
[323656954,1714149061324,-500.0,0.00012088,2]
[323656955,1714149061335,-500.0,0.00012088,2]
[323656956,1714149061344,-500.0,0.00012088,2]
[323656957,1714149061354,-500.0,0.00012088,2]
[323656958,1714149061363,-178.805252,0.00012088,2]
[323656959,1714149061373,-500.0,0.00012088,2]
[323656960,1714149061384,-500.0,0.00012088,2]
[323656961,1714149061393,-500.0,0.00012088,2]
[323656962,1714149061403,-500.0,0.00012088,2]
[323656963,1714149061412,-500.0,0.00012088,2]
[323656964,1714149061422,-593.94,0.00012088,2]
[323656965,1714149061431,-500.0,0.00012088,2]
[323656966,1714149061441,-500.0,0.00012088,2]
[323656967,1714149061450,-408.52,0.00012088,2]
[323656968,1714149061460,-182.56,0.00012088,2]
[323656969,1714149061470,-500.0,0.00012088,2]
[323656970,1714149061479,-500.0,0.00012088,2]
[323656971,1714149061489,-500.0,0.00012088,2]
[323656972,1714149061499,-500.0,0.00012088,2]
[323656973,1714149061508,-500.0,0.00012088,2]
[323656974,1714149061517,-500.0,0.00012088,2]
[323656975,1714149061526,-392.35920343,0.00012088,2]
[323656976,1714149061536,-500.0,0.00012088,2]
[323656977,1714149061545,-340.86864142,0.00012088,2]
[323656978,1714149061554,-500.0,0.00012088,2]
[323656979,1714149061566,-500.0,0.00012088,2]
[323656980,1714149061575,-500.0,0.00012088,2]
[323656981,1714149061585,-500.0,0.00012088,2]
[323656982,1714149061595,-500.0,0.00012088,2]
[323656983,1714149061605,-500.0,0.00012088,2]
[323656984,1714149061614,-500.0,0.00012088,2]
[323656985,1714149061624,-500.0,0.00012088,2]
[323656986,1714149061633,-500.0,0.00012088,2]
[323656987,1714149061643,-595.28,0.00012088,2]
[323656988,1714149061652,-500.0,0.00012088,2]
[323656989,1714149061662,-500.0,0.00012088,2]
[323656990,1714149061671,-500.0,0.00012088,2]
[323656991,1714149061680,-500.0,0.00012088,2]
[323656992,1714149061690,-500.0,0.00012088,2]
[323656993,1714149061699,-500.0,0.00012088,2]
[323656994,1714149061709,-500.0,0.00012088,2]
[323656995,1714149061718,-6178.5,0.00012088,2]
[323656996,1714149061728,-780.26,0.00012088,2]
[323656997,1714149061737,-500.0,0.00012088,2]
[323656998,1714149061747,-2459.65,0.00012088,2]
[323656999,1714149061757,-500.0,0.00012088,2]
[323657000,1714149061767,-500.0,0.00012088,2]
[323657001,1714149061778,-500.0,0.00012088,2]
[323657002,1714149061787,-500.0,0.00012088,2]
[323657003,1714149061797,-500.0,0.00012088,2]
[323657004,1714149061806,-2405.25,0.00012088,2]
[323657005,1714149061818,-500.0,0.00012088,2]
[323657006,1714149061828,-3836.22,0.00012088,2]
[323657007,1714149061838,-500.0,0.00012088,2]
[323657008,1714149061847,-500.0,0.00012088,2]
[323657009,1714149061857,-500.0,0.00012088,2]
[323657010,1714149061866,-500.0,0.00012088,2]
[323657011,1714149061875,-2049.54,0.00012088,2]
[323657012,1714149061885,-500.0,0.00012088,2]
[323657013,1714149061894,-500.0,0.00012088,2]
[323657014,1714149061903,-500.0,0.00012088,2]
[323657015,1714149061912,-3945.37,0.00012088,2]
[323657016,1714149061922,-500.0,0.00012088,2]
[323657017,1714149061931,-2408.93,0.00012088,2]
[323657018,1714149061941,-2588.33,0.00012088,2]
[323657019,1714149061951,-500.0,0.00012088,2]
[323657020,1714149061960,-500.0,0.00012088,2]
[323657021,1714149061969,-500.0,0.00012088,2]
[323657022,1714149061978,-500.0,0.00012088,2]
[323657023,1714149061988,-500.0,0.00012088,2]
[323657024,1714149061997,-2855.65,0.00012088,2]
[323657025,1714149062007,-445.77864655,0.00012088,2]
[323657026,1714149062017,-500.0,0.00012088,2]
[323657027,1714149062027,-5750.0,0.00012088,2]
[323657028,1714149062036,-6585.94,0.00012088,2]
[323657029,1714149062046,-500.0,0.00012088,2]
[323657030,1714149062055,-2628.03,0.00012088,2]
[323657031,1714149062066,-500.0,0.00012088,2]
[323657032,1714149062076,-500.0,0.00012088,2]
[323657033,1714149062086,-500.0,0.00012088,2]
[323657034,1714149062095,-276.12,0.00012088,2]
[323657035,1714149062105,-500.0,0.00012088,2]
[323657036,1714149062114,-4598.48,0.00012088,2]
[323657037,1714149062123,-500.0,0.00012088,2]
[323657038,1714149062133,-2634.56,0.00012088,2]
[323657039,1714149062143,-6283.58,0.00012088,2]
[323657040,1714149062152,-500.0,0.00012088,2]
[323657041,1714149062161,-200.72,0.00012088,2]
[323657042,1714149062171,-500.0,0.00012088,2]
[323657043,1714149062181,-500.0,0.00012088,2]
[323657044,1714149062190,-8055.65,0.00012088,2]
[323657045,1714149062200,-1633.49,0.00012088,2]
[323657046,1714149062209,-500.0,0.00012088,2]
[323657047,1714149062219,-204.63,0.00012088,2]
[323657048,1714149062228,-500.0,0.00012088,2]
[323657049,1714149062237,-1923.8,0.00012088,2]
[323657050,1714149062247,-500.0,0.00012088,2]
[323657051,1714149062256,-500.0,0.00012088,2]
[323657052,1714149062266,-306.97,0.00012088,2]
[323657053,1714149062275,-153.84,0.00012088,2]
[323657054,1714149062285,-500.0,0.00012088,2]
[323657055,1714149062297,-4065.88,0.00012088,2]
[323657056,1714149062306,-500.0,0.00012089,2]
[323657057,1714149062320,-504.45640085,0.00012089,2]
[323657058,1714149062329,-500.0,0.00012089,2]
[323657059,1714149062342,-500.0,0.00012089,2]
[323657060,1714149062351,-500.0,0.00012089,2]
[323657061,1714149062361,-500.0,0.00012089,2]
[323657062,1714149062370,-500.0,0.00012089,2]
[323657063,1714149062380,-500.0,0.00012089,2]
[323657064,1714149062390,-500.0,0.00012089,2]
[323657065,1714149062400,-500.0,0.00012089,2]
[323657066,1714149062409,-500.0,0.00012089,2]
[323657067,1714149062418,-500.0,0.00012089,2]
[323657068,1714149062428,-500.0,0.00012089,2]
[323657069,1714149062437,-500.0,0.00012089,2]
[323657070,1714149062447,-500.0,0.00012089,2]
[323657071,1714149062456,-500.0,0.00012089,2]
[323657072,1714149062466,-500.0,0.00012089,2]
[323657073,1714149062476,-500.0,0.00012089,2]
[323657074,1714149062486,-446.89877413,0.00012089,2]
[323657075,1714149062495,-500.0,0.00012089,2]
[323657076,1714149062505,-500.0,0.00012089,2]
[323657077,1714149062514,-500.0,0.00012089,2]
[323657078,1714149062524,-500.0,0.00012089,2]
[323657079,1714149062533,-199.31299272,0.00012089,2]
[323657080,1714149062542,-500.0,0.00012089,2]